bitfinex/quotes_ETHUSD_20240827
["timestamp","ask_amount","ask_price","bid_price","bid_amount"]
[1724791421102,0.31256318,2592.2,2591.8,0.55]
[1724791421433,6.12039,2592.3,2591.8,0.55]
[1724791421670,0.31237678,2592.1,2591.6,0.55]
[1724791421792,2.2628,2592.0,2591.6,0.55]
[1724791421996,2.57517678,2592.0,2591.6,0.782]
[1724791422718,6.43319678,2592.0,2591.6,0.782]
[1724791423728,6.43319678,2592.0,2591.7,0.55]
[1724791429329,4.17039678,2592.0,2591.7,0.55]
[1724791429636,2.2715,2591.9,2591.7,0.55]
[1724791429827,2.58324644,2591.9,2591.7,0.55]
[1724791431623,2.58324644,2591.9,2591.3,7.27]
[1724791431624,3.85863,2591.6,2591.3,7.27]
[1724791431957,6.33182,2591.8,2590.9,2.4587]
[1724791431958,2.4735,2591.5,2590.9,11.40348441]
[1724791432115,2.78524644,2591.5,2590.9,15.26311441]
[1724791432654,2.4735,2591.5,2591.0,1.67478441]
[1724791432956,2.4735,2591.5,2590.9,7.27]
[1724791433123,4.17033016,2591.4,2590.7,4.11438441]
[1724791433464,4.17033016,2591.4,2590.8,1.67478441]
[1724791434457,4.17033016,2591.4,2590.9,0.55]
[1724791434653,4.17033016,2591.4,2590.9,1.01643844]
[1724791435718,2.492,2591.3,2590.9,1.01643844]
[1724791435913,2.492,2591.3,2590.9,0.55]
[1724791436284,2.492,2591.3,2590.6,3.85999]
[1724791436285,0.31140016,2591.2,2590.8,0.55]
[1724791436455,4.17068016,2591.2,2590.7,0.55]
[1724791436660,2.3796,2591.1,2590.7,1.17974844]
[1724791436815,2.3796,2591.1,2590.8,0.55]
[1724791437017,0.31104488,2591.0,2590.8,0.55]
[1724791437527,0.31104488,2591.0,2590.4,2.4317]
[1724791437710,0.31104488,2591.0,2590.5,3.15995441]
[1724791439345,0.31104488,2591.0,2590.6,1.67478441]
[1724791439542,0.31104488,2591.0,2590.8,1.67478441]
[1724791439715,2.3796,2591.3,2590.9,0.55]
[1724791440038,0.31016546,2591.2,2590.7,2.22478441]
[1724791440244,0.31016546,2591.2,2590.8,0.85165144]
[1724791440426,2.3796,2591.3,2590.9,0.55]
[1724791440617,0.31016546,2591.1,2590.9,0.55]
[1724791440814,0.31016546,2591.1,2590.9,0.85764359]
[1724791441019,6.23866,2591.3,2590.9,0.85764359]
[1724791441020,6.23866,2591.3,2590.9,0.55]
[1724791441248,0.31016546,2591.0,2590.9,0.55]
[1724791441476,6.23866,2591.3,2590.9,0.55]
[1724791441640,0.31016546,2591.0,2590.9,0.55]
[1724791441842,6.23866,2591.3,2590.9,0.55]
[1724791442040,0.31016546,2591.0,2590.9,0.55]
[1724791442483,2.3796,2591.3,2590.9,0.85764359]
[1724791442693,0.31016546,2591.0,2590.9,0.85764359]
[1724791442842,2.3796,2591.3,2590.9,0.85764359]
[1724791443042,0.31016546,2591.0,2590.9,0.85764359]
[1724791443280,6.85847,2591.7,2590.9,0.85764359]
[1724791443491,6.85847,2591.7,2591.0,1.92802721]
[1724791443492,6.30242,2591.6,2591.0,1.92802721]
[1724791443788,10.16112,2591.6,2591.1,0.55]
[1724791444137,3.85879,2591.5,2591.1,0.55]
[1724791444341,10.16118,2591.6,2591.1,0.55]
[1724791445770,3.85877,2591.5,2591.1,0.55]
[1724791448476,3.85877,2591.5,2590.8,8.94478441]
[1724791448477,3.85921,2591.2,2590.8,7.27]
[1724791448648,3.85958,2591.0,2590.8,7.27]
[1724791448972,3.85966,2590.9,2590.8,7.27]
[1724791449178,4.16994096,2590.9,2590.8,7.27]
[1724791449985,4.16994096,2590.9,2590.8,7.82]
[1724791451175,0.31028096,2590.9,2590.8,7.82]
[1724791453091,6.26436,2591.1,2590.8,7.82]
[1724791453267,9.71808,2591.4,2590.9,0.55]
[1724791453469,6.29072,2591.4,2590.9,0.55]
[1724791454263,6.2907,2591.4,2590.9,0.55]
[1724791454670,10.14972,2591.4,2590.9,0.55]
[1724791456010,6.2907,2591.4,2590.9,0.55]
[1724791456348,6.2907,2591.4,2590.9,1.09894844]
[1724791457074,3.85907,2591.3,2590.9,1.09894844]
[1724791459206,2.4317,2591.4,2590.9,1.09894844]
[1724791459417,3.0,2591.4,2590.9,1.09894844]
[1724791459601,3.85879,2591.5,2591.0,2.3998]
[1724791459783,3.85879,2591.5,2591.1,0.55]
[1724791460931,3.85894,2591.4,2591.1,0.55]
[1724791463381,0.30993443,2591.3,2591.1,0.55]
[1724791467087,6.85857,2591.7,2591.1,0.55]
[1724791467319,0.30993443,2591.2,2591.1,0.55]
[1724791467602,6.24136,2591.8,2591.2,2.4762]
[1724791467806,3.85833,2591.8,2591.3,0.55]
[1724791468128,3.85819,2591.9,2591.3,0.55]
[1724791468129,3.85824,2591.9,2591.3,0.55]
[1724791468308,3.85839,2591.8,2591.3,1.02009844]
[1724791472615,7.71681,2591.8,2591.3,1.02009844]
[1724791472850,2.3684,2591.7,2591.3,0.55]
[1724791473152,2.3684,2591.7,2591.1,2.2648]
[1724791473153,2.3684,2591.7,2591.2,0.55]
[1724791473530,6.22699,2591.7,2591.2,0.55]
[1724791475656,2.3684,2591.7,2591.2,0.55]
[1724791475945,2.3684,2591.7,2591.2,1.21743]
[1724791478541,0.31028878,2591.6,2591.2,1.21743]
[1724791487973,2.4496,2591.5,2590.9,7.27]
[1724791488185,6.30844,2591.5,2590.9,7.27]
[1724791488474,0.31030655,2591.4,2590.9,7.27]
[1724791488687,2.3266,2591.3,2590.9,7.27]
[1724791489038,4.16964097,2591.2,2590.9,7.27]
[1724791489269,4.16964097,2591.2,2590.2,4.66592695]
[1724791489270,4.16964097,2591.2,2590.5,2.3602]
[1724791490348,4.16964097,2591.2,2590.6,0.55]
[1724791491769,3.35722797,2591.2,2590.6,0.55]
[1724791491946,0.31004888,2591.1,2590.6,0.55]
[1724791492147,0.31004888,2591.1,2590.6,2.12153744]
[1724791494469,3.35722797,2591.2,2590.6,2.12153744]
[1724791497532,2.3266,2591.3,2590.6,7.65641185]
[1724791497854,0.29928623,2591.2,2590.8,4.12558441]
[1724791498053,3.0,2591.5,2590.9,0.55]
[1724791498254,0.29900183,2591.1,2590.9,1.34854644]
[1724791498472,3.0,2591.5,2590.9,1.34854644]
[1724791498673,0.29900183,2591.0,2590.9,1.34854644]
[1724791498843,3.0,2591.5,2590.9,1.34854644]
[1724791499037,0.29900183,2591.0,2590.9,1.34854644]
[1724791499281,6.85878,2591.5,2590.9,1.34854644]
[1724791499587,0.29900183,2591.0,2590.9,0.55]
[1724791499739,6.85878,2591.5,2590.9,0.55]
[1724791499940,0.29900183,2591.0,2590.9,0.55]
[1724791500175,6.85878,2591.5,2590.9,0.55]
[1724791500383,0.29900183,2591.0,2590.9,0.55]
[1724791500546,6.85878,2591.5,2590.9,1.40354644]
[1724791500753,0.29900183,2591.0,2590.9,0.55]
[1724791500979,2.3853,2591.2,2590.7,0.55]
[1724791501160,0.29900183,2591.0,2590.7,0.55]
[1724791501411,2.3853,2591.2,2590.7,0.55]
[1724791501980,2.3853,2591.2,2590.7,1.31565619]
[1724791501981,0.29912626,2591.1,2590.7,1.31565619]
[1724791502183,0.29912626,2591.1,2590.8,2.2652]
[1724791502384,0.29912626,2591.1,2590.9,0.55]
[1724791502694,0.29912626,2591.0,2590.9,0.55]
[1724791502978,0.29912626,2591.0,2590.9,1.46156006]
[1724791503277,2.3914,2591.4,2590.9,1.46156006]
[1724791503446,0.29912626,2591.0,2590.9,1.46156006]
[1724791503646,2.3914,2591.4,2590.9,1.46156006]
[1724791503847,0.29912626,2591.0,2590.9,1.46156006]
[1724791504149,2.3914,2591.4,2590.9,3.13634447]
[1724791504354,0.29912626,2591.0,2590.9,1.46156006]
[1724791504581,6.25032,2591.4,2590.9,0.55]
[1724791504789,0.29912626,2591.0,2590.9,0.55]
[1724791504974,0.29912626,2591.0,2590.4,7.27]
[1724791504975,3.85962,2591.0,2590.4,7.27]
[1724791505190,2.2586,2590.8,2590.5,0.727]
[1724791505371,2.2586,2590.8,2590.4,7.27]
[1724791505570,6.11849,2590.8,2590.4,7.27]
[1724791505813,0.29920625,2590.7,2590.4,7.27]
[1724791506163,2.2586,2590.8,2590.4,7.27]
[1724791506376,0.29920625,2590.6,2590.4,7.27]
[1724791506689,0.29920625,2590.5,2590.4,0.727]
[1724791506888,2.2586,2590.8,2590.4,0.55]
[1724791507077,2.2586,2590.8,2590.5,0.55]
[1724791507498,6.11849,2590.8,2590.5,0.55]
[1724791508470,0.29920625,2590.7,2590.5,0.55]
[1724791508699,6.11849,2590.8,2590.5,0.55]
[1724791508901,0.29920625,2590.6,2590.5,0.55]
[1724791509078,6.11849,2590.8,2590.5,0.55]
[1724791509376,0.29920625,2590.6,2590.5,0.55]
[1724791509905,6.11849,2590.8,2590.5,0.55]
[1724791510199,0.29920625,2590.6,2590.5,0.55]
[1724791510398,6.11849,2590.8,2590.5,0.55]
[1724791511007,0.29872628,2590.7,2590.5,0.55]
[1724791511368,6.11849,2590.8,2590.5,0.55]
[1724791511570,0.29872628,2590.6,2590.5,0.55]
[1724791511766,6.11849,2590.8,2590.5,0.55]
[1724791512287,0.29872628,2590.7,2590.5,0.55]
[1724791512500,6.11849,2590.8,2590.5,0.55]
[1724791512666,0.29872628,2590.6,2590.5,0.55]
[1724791512867,6.11849,2590.8,2590.5,0.55]
[1724791513088,0.29872628,2590.6,2590.5,0.55]
[1724791513293,6.11849,2590.8,2590.5,0.55]
[1724791513601,0.29872628,2590.6,2590.5,0.55]
[1724791513807,6.11849,2590.8,2590.5,0.55]
[1724791513970,0.29872628,2590.6,2590.5,0.55]
[1724791514512,6.11849,2590.8,2590.5,0.55]
[1724791514669,0.29872628,2590.6,2590.5,0.55]
[1724791515009,6.11849,2590.8,2590.5,0.55]
[1724791515182,0.29872628,2590.6,2590.5,0.55]
[1724791515692,6.11849,2590.8,2590.5,0.55]
[1724791515870,0.29872628,2590.6,2590.5,0.55]
[1724791516070,6.11849,2590.8,2590.5,0.55]
[1724791516307,0.29872628,2590.6,2590.5,0.55]
[1724791516582,6.11849,2590.8,2590.5,0.55]
[1724791516782,0.29872628,2590.6,2590.5,0.55]
[1724791517011,6.11849,2590.8,2590.5,0.55]
[1724791517210,0.29872628,2590.6,2590.5,0.55]
[1724791517375,6.11849,2590.8,2590.5,0.55]
[1724791517574,0.29872628,2590.6,2590.5,0.55]
[1724791517776,2.2586,2590.8,2590.5,0.55]
[1724791518285,0.29872628,2590.7,2590.5,0.55]
[1724791518794,2.2586,2590.8,2590.5,0.55]
[1724791518995,0.29872628,2590.6,2590.5,0.55]
[1724791519194,6.11843,2590.8,2590.5,0.55]
[1724791519825,0.29872628,2590.7,2590.5,0.55]
[1724791520169,6.11843,2590.8,2590.5,0.55]
[1724791520434,0.29877961,2590.6,2590.5,0.55]
[1724791520888,6.11843,2590.8,2590.5,0.55]
[1724791521209,0.29877961,2590.6,2590.5,0.55]
[1724791521423,6.11843,2590.8,2590.5,0.55]
[1724791521881,0.29877961,2590.7,2590.5,0.55]
[1724791522205,6.11843,2590.8,2590.5,0.55]
[1724791522417,0.29877961,2590.6,2590.5,0.55]
[1724791522567,6.11843,2590.8,2590.5,0.55]
[1724791522772,0.29877961,2590.6,2590.5,0.55]
[1724791523004,6.11843,2590.8,2590.5,0.55]
[1724791523609,0.29877961,2590.7,2590.5,0.55]
[1724791524106,0.29877961,2590.6,2590.5,0.55]
[1724791524310,6.11843,2590.8,2590.5,0.55]
[1724791524505,0.29877961,2590.6,2590.5,0.55]
[1724791524810,6.11843,2590.8,2590.5,0.55]
[1724791525013,0.29877961,2590.6,2590.5,0.55]
[1724791525213,3.85997,2590.7,2590.5,0.55]
[1724791525373,0.29877961,2590.6,2590.5,0.55]
[1724791526573,3.85981,2590.8,2590.5,0.55]
[1724791526911,3.85914,2591.3,2590.7,1.67478441]
[1724791527126,3.85914,2591.3,2590.8,2.4332]
[1724791527276,7.71832,2591.3,2590.9,0.55]
[1724791527477,7.71829,2591.3,2590.9,0.55]
[1724791527711,3.85914,2591.3,2590.9,0.55]
[1724791527987,3.85823,2591.9,2591.2,4.05398441]
[1724791527988,2.3433,2591.8,2591.2,4.05398441]
[1724791528212,3.85826,2591.9,2591.4,1.67478441]
[1724791528376,3.85826,2591.9,2591.3,1.67478441]
[1724791528572,3.85826,2591.9,2591.4,0.55]
[1724791528879,3.85826,2591.9,2591.4,2.22478441]
[1724791529075,3.85826,2591.9,2591.4,0.55]
[1724791529627,3.85826,2591.9,2591.3,0.55]
[1724791529628,2.3657,2591.8,2591.3,0.55]
[1724791529803,3.85885,2591.5,2591.3,0.55]
[1724791531506,3.85891,2591.4,2591.3,0.55]
[1724791531805,6.22461,2591.4,2591.3,0.55]
[1724791532207,3.85876,2591.5,2591.3,0.55]
[1724791533090,7.71762,2591.5,2591.3,0.55]
[1724791533295,3.85876,2591.5,2591.3,0.55]
[1724791533525,7.71761,2591.5,2591.3,0.55]
[1724791534900,3.85876,2591.5,2591.3,0.55]
[1724791535097,4.444786,2591.4,2591.3,0.55]
[1724791536748,0.585876,2591.4,2591.3,0.55]
[1724791537064,2.0,2591.6,2591.3,0.55]
[1724791537420,5.85864,2591.6,2591.1,0.55]
[1724791538541,0.29965055,2591.5,2591.1,0.55]
[1724791540058,4.15843055,2591.5,2591.1,0.55]
[1724791540232,8.01728055,2591.5,2591.1,0.55]
[1724791540439,4.15843055,2591.5,2591.1,0.55]
[1724791540780,8.01728055,2591.5,2591.1,0.55]
[1724791541070,3.85891,2591.4,2591.1,0.55]
[1724791541422,0.29965055,2591.3,2590.9,0.55]
[1724791548275,2.62785055,2591.3,2590.9,0.55]
[1724791550681,6.48691055,2591.3,2590.9,0.55]
[1724791553859,2.62785055,2591.3,2590.9,0.55]
[1724791554067,0.29965055,2591.3,2590.9,0.83086]
[1724791554743,4.15875055,2591.3,2590.9,0.55]
[1724791555846,0.29965055,2591.3,2590.9,0.55]
[1724791557794,3.85877,2591.5,2590.9,0.55]
[1724791558244,0.28969011,2591.4,2590.9,0.55]
[1724791558446,0.28969011,2591.4,2591.0,0.28086]
[1724791558685,0.28969011,2591.4,2591.1,0.55]
[1724791559052,0.28969011,2591.4,2591.2,2.2891]
[1724791559246,3.8585,2591.7,2591.3,0.55]
[1724791559477,0.28974364,2591.6,2591.3,0.55]
[1724791559659,3.85842,2591.8,2591.3,0.55]
[1724791559660,6.85849,2591.7,2591.3,0.55]
[1724791560064,0.28977933,2591.6,2591.3,0.55]
[1724791561856,4.14839933,2591.6,2591.3,0.55]
[1724791564155,8.00708933,2591.6,2591.3,0.55]
[1724791564693,4.14839933,2591.6,2591.3,0.55]
[1724791565498,8.00709933,2591.6,2591.3,0.55]
[1724791565656,4.14839933,2591.6,2591.3,0.55]
[1724791566391,3.85887,2591.5,2591.3,0.55]
[1724791566693,0.28985964,2591.4,2591.1,0.55]
[1724791566994,3.85914,2591.3,2591.1,0.55]
[1724791567360,3.85914,2591.3,2590.9,0.55]
[1724791567577,0.28981503,2591.2,2590.9,0.55]
[1724791568090,0.28981503,2591.2,2590.3,3.86048]
[1724791568091,3.8596,2591.0,2590.4,2.3812]
[1724791568302,3.8596,2591.0,2590.5,2.3812]
[1724791568453,0.28977041,2590.9,2590.5,2.3812]
[1724791568954,0.28977041,2590.9,2590.4,2.4481]
[1724791568955,4.14945041,2590.9,2590.4,2.4481]
[1724791569183,4.14945041,2590.9,2590.5,0.33355052]
[1724791569377,4.14945041,2590.9,2590.6,0.55]
[1724791572929,0.28977041,2590.9,2590.6,0.55]
[1724791574337,4.14945041,2590.9,2590.6,0.55]
[1724791574510,6.34376,2590.7,2590.0,1.20794543]
[1724791575019,6.34376,2590.7,2590.0,2.88552293]
[1724791575208,0.28949377,2590.6,2590.0,2.88552293]
[1724791575411,0.28949377,2590.6,2590.1,2.48287445]
[1724791575724,0.28949377,2590.6,2590.1,0.80529695]
[1724791575903,0.28949377,2590.6,2590.2,2.04665949]
[1724791576108,3.85976,2590.9,2590.3,4.0390775]
[1724791576308,0.28933312,2590.5,2590.3,4.0390775]
[1724791576508,3.85976,2590.9,2590.4,0.55]
[1724791576939,3.85982,2590.8,2590.4,0.55]
[1724791579963,3.85976,2590.9,2590.4,0.55]
[1724791580141,3.85998,2590.7,2590.4,0.55]
[1724791581875,3.85981,2590.8,2590.4,2.72339345]
[1724791582060,3.85945,2591.1,2590.5,1.6775775]
[1724791582234,3.85945,2591.1,2590.6,0.55]
[1724791582430,3.85959,2591.0,2590.6,0.55]
[1724791582657,3.85959,2591.0,2590.6,0.82233934]
[1724791583564,0.28881539,2590.9,2590.6,0.82233934]
[1724791584286,0.28881539,2590.9,2590.7,2.3621]
[1724791584580,5.85916,2591.3,2590.8,0.55]
[1724791584733,6.85931,2591.2,2590.8,1.25895943]
[1724791585945,3.85931,2591.2,2590.8,1.25895943]
[1724791587332,3.85937,2591.1,2590.8,1.25895943]
[1724791588862,7.71882,2591.1,2590.8,1.25895943]
[1724791589065,3.85937,2591.1,2590.8,1.25895943]
[1724791589375,7.71883,2591.1,2590.8,1.25895943]
[1724791589581,3.85937,2591.1,2590.8,1.25895943]
[1724791590088,7.71887,2591.1,2590.8,1.25895943]
[1724791590293,3.85937,2591.1,2590.8,0.55]
[1724791590696,3.85966,2590.9,2590.8,0.55]
[1724791591057,3.86018,2590.6,2590.4,7.37]
[1724791591252,7.7205,2590.5,2590.4,7.37]
[1724791591620,3.86064,2590.3,2590.0,2.3423]
[1724791591898,3.86064,2590.3,2589.7,2.3423]
[1724791592197,3.86071,2590.2,2589.7,4.0198775]
[1724791592495,0.28890466,2590.2,2589.8,1.6775775]
[1724791592850,3.86055,2590.3,2589.8,1.6775775]
[1724791593048,0.28890466,2590.1,2589.8,1.6775775]
[1724791593278,3.86055,2590.3,2589.8,2.07956525]
[1724791593477,0.28890466,2590.0,2589.9,0.55]
[1724791593665,3.86043,2590.4,2589.9,2.2275775]
[1724791593871,3.86043,2590.4,2590.0,0.26295653]
[1724791594153,0.28890466,2590.3,2590.1,0.55]
[1724791594908,0.28890466,2590.3,2589.9,0.55]
[1724791597711,0.28890466,2590.3,2589.9,0.55]
[1724791599269,3.86027,2590.5,2589.9,0.55]
[1724791599615,0.28890466,2590.4,2589.9,1.26557277]
[1724791599810,4.14932466,2590.4,2589.9,1.26557277]
[1724791600762,0.28890466,2590.4,2589.9,1.26557277]
[1724791600968,3.86014,2590.6,2589.9,1.26557277]
[1724791601320,0.28890466,2590.3,2589.9,1.26557277]
[1724791601480,3.86014,2590.6,2589.9,1.26557277]
[1724791601674,0.28890466,2590.2,2589.9,1.26557277]
[1724791601869,3.86032,2590.5,2589.9,1.26557277]
[1724791602070,0.28890466,2590.1,2589.9,1.26557277]
[1724791602470,3.86032,2590.5,2589.9,1.26557277]
[1724791602927,0.28890466,2590.0,2589.9,1.26557277]
[1724791603183,3.86032,2590.5,2589.9,1.26557277]
[1724791603395,0.28890466,2590.0,2589.9,1.26557277]
[1724791603804,3.86032,2590.5,2589.9,1.26557277]
[1724791603971,0.28890466,2590.0,2589.9,1.26557277]
[1724791604176,3.86032,2590.5,2589.9,1.26557277]
[1724791604374,0.28890466,2590.0,2589.9,1.26557277]
[1724791604621,3.86032,2590.5,2589.9,1.26557277]
[1724791604807,0.28890466,2590.0,2589.9,1.26557277]
[1724791605220,3.86032,2590.5,2589.9,1.26557277]
[1724791605385,0.28890466,2590.0,2589.9,1.26557277]
[1724791605592,3.86032,2590.5,2589.9,1.26557277]
[1724791605801,0.28890466,2590.0,2589.9,1.26557277]
[1724791605988,3.86032,2590.5,2589.9,1.26557277]
[1724791606316,0.28851183,2590.0,2589.9,1.26557277]
[1724791606650,3.86032,2590.5,2589.9,1.26557277]
[1724791606812,0.28851183,2590.0,2589.9,1.26557277]
[1724791607108,3.86032,2590.5,2589.9,1.26557277]
[1724791607273,0.28851183,2590.0,2589.9,1.26557277]
[1724791607481,3.86032,2590.5,2589.9,1.26557277]
[1724791607707,0.28851183,2590.0,2589.9,1.26557277]
[1724791608375,3.86032,2590.5,2589.9,3.75557277]
[1724791608575,0.28851183,2590.0,2589.9,3.75557277]
[1724791608807,3.86032,2590.5,2589.9,3.75557277]
[1724791609013,0.28851183,2590.0,2589.9,3.75557277]
[1724791609207,3.86032,2590.5,2589.9,3.75557277]
[1724791609510,0.28851183,2590.0,2589.9,3.75557277]
[1724791609714,3.86032,2590.5,2589.9,3.75557277]
[1724791609940,0.28851183,2590.0,2589.9,3.75557277]
[1724791610443,3.86032,2590.5,2589.9,3.75557277]
[1724791610595,0.28851183,2590.0,2589.9,3.75557277]
[1724791610810,3.86032,2590.5,2589.9,3.75557277]
[1724791610995,0.28851183,2590.0,2589.9,3.75557277]
[1724791611192,3.86032,2590.5,2589.9,3.75557277]
[1724791611390,0.28851183,2590.0,2589.9,3.75557277]
[1724791611591,3.86032,2590.5,2589.9,3.75557277]
[1724791611812,0.28851183,2590.0,2589.9,3.75557277]
[1724791611992,3.86032,2590.5,2589.9,3.75557277]
[1724791612227,0.28851183,2590.0,2589.9,3.75557277]
[1724791612476,3.86032,2590.5,2589.9,3.75557277]
[1724791612693,0.28851183,2590.0,2589.9,3.75557277]
[1724791613081,3.86032,2590.5,2589.9,3.75557277]
[1724791613084,6.34116,2590.9,2590.1,2.4261]
[1724791613194,3.85791,2592.1,2590.3,6.28663]
[1724791613195,6.34093,2591.1,2590.3,6.28663]
[1724791613511,0.2881547,2590.8,2590.4,0.55]
[1724791613713,6.34093,2591.1,2590.5,0.683663]
[1724791614112,0.2881547,2590.7,2590.6,0.55]
[1724791614115,3.85953,2591.0,2590.6,0.55]
[1724791614503,6.34093,2591.1,2590.6,0.55]
[1724791614504,0.2881547,2590.7,2590.6,0.55]
[1724791614725,3.85967,2590.9,2590.4,0.55]
[1724791614802,0.28830649,2590.7,2590.4,0.55]
[1724791615007,3.85967,2590.9,2590.4,0.55]
[1724791615243,0.28830649,2590.6,2590.4,0.55]
[1724791615407,3.85967,2590.9,2590.4,0.55]
[1724791615591,0.28830649,2590.5,2590.4,0.55]
[1724791615791,2.4627,2590.8,2590.4,1.0154145]
[1724791616021,0.28830649,2590.5,2590.4,0.55]
[1724791616336,2.4627,2590.8,2590.4,0.55]
[1724791616541,0.28830649,2590.5,2590.4,0.55]
[1724791616710,2.4627,2590.8,2590.4,0.55]
[1724791616911,0.28830649,2590.5,2590.4,0.55]
[1724791617112,2.4627,2590.8,2590.4,1.0154145]
[1724791617334,0.28830649,2590.5,2590.4,1.0154145]
[1724791617500,2.4627,2590.8,2590.4,1.0154145]
[1724791617699,0.28830649,2590.5,2590.4,1.0154145]
[1724791617905,2.4627,2590.8,2590.4,1.0154145]
[1724791618404,0.28830649,2590.7,2590.4,1.0154145]
[1724791619064,2.4627,2590.8,2590.4,1.0154145]
[1724791619066,0.28830649,2590.6,2590.4,1.0154145]
[1724791619120,2.4627,2590.8,2590.4,1.0154145]
[1724791619315,0.28830649,2590.5,2590.4,1.0154145]
[1724791619548,6.24382,2591.0,2590.4,1.0154145]
[1724791619847,6.24382,2591.0,2590.5,0.51195595]
[1724791620008,6.24382,2591.0,2590.6,0.55]
[1724791620636,6.8591,2591.3,2590.7,4.07004499]
[1724791620901,6.8591,2591.3,2590.8,1.0120045]
[1724791621125,6.8591,2591.3,2590.8,0.55]
[1724791622979,2.7883836,2591.4,2590.8,0.55]
[1724791623123,3.85893,2591.4,2590.9,1.67804499]
[1724791623345,3.85914,2591.3,2590.9,0.46972394]
[1724791623533,6.16636,2591.1,2591.0,0.55]
[1724791623740,3.85988,2590.8,2590.3,7.37]
[1724791623945,2.307,2591.1,2590.4,4.14424925]
[1724791624110,2.307,2591.1,2590.5,1.15142492]
[1724791624589,9.1665,2591.1,2590.5,1.15142492]
[1724791625126,9.1665,2591.1,2590.5,2.82946991]
[1724791625507,9.1665,2591.1,2590.6,0.55]
[1724791626109,3.85952,2591.0,2590.6,0.55]
[1724791626441,3.85969,2590.9,2590.6,0.55]
[1724791626655,3.85981,2590.8,2590.5,0.55]
[1724791626845,3.85981,2590.8,2590.4,0.55]
[1724791627146,3.85966,2590.9,2590.4,1.6854545]
[1724791628544,0.28879755,2590.8,2590.4,1.6854545]
[1724791631272,4.14861755,2590.8,2590.4,0.55]
[1724791631435,6.25737,2590.7,2590.4,0.55]
[1724791631637,2.3974,2590.7,2590.4,0.55]
[1724791631847,0.28879755,2590.6,2590.3,0.55]
[1724791632165,0.28879755,2590.6,2590.3,1.0034545]
[1724791635927,0.28879755,2590.6,2590.3,2.68149949]
[1724791636337,6.85938,2591.1,2590.5,4.05634499]
[1724791636567,6.85938,2591.1,2590.6,0.55]
[1724791637236,3.0,2591.1,2590.6,0.55]
[1724791638163,6.85936,2591.1,2590.6,0.55]
[1724791639023,10.71883,2591.1,2590.6,0.55]
[1724791640072,3.85952,2591.0,2590.6,0.55]
[1724791640245,2.44,2590.8,2590.1,2.3783]
[1724791640428,3.85996,2590.7,2590.1,4.05634499]
[1724791640626,3.85996,2590.7,2590.2,0.4056345]
[1724791640837,6.29982,2590.8,2590.2,0.4056345]
[1724791641566,6.29982,2590.8,2590.3,0.55]
[1724791642269,6.29982,2590.8,2590.3,2.22804499]
[1724791642971,3.85982,2590.8,2590.3,2.22804499]
[1724791643130,3.85982,2590.8,2590.3,3.11532794]
[1724791643672,0.28895822,2590.7,2590.3,3.11532794]
[1724791643863,3.85982,2590.8,2590.3,3.11532794]
[1724791644064,0.28895822,2590.6,2590.3,3.11532794]
[1724791644374,2.0,2591.3,2590.3,3.11532794]
[1724791644375,11.29877,2591.5,2590.7,3.85995]
[1724791644616,6.13372,2591.6,2591.0,4.05014499]
[1724791644970,6.13372,2591.6,2591.1,0.55]
[1724791646966,3.85879,2591.5,2591.1,0.55]
[1724791651081,2.85926038,2591.8,2591.2,1.67804499]
[1724791651245,6.71765038,2591.8,2591.3,0.55]
[1724791651449,3.0,2591.7,2591.1,2.68805949]
[1724791651681,3.0,2591.7,2591.2,0.89195595]
[1724791651841,3.0,2591.7,2591.3,0.55]
[1724791652192,6.85847,2591.7,2591.3,0.55]
[1724791652381,6.85847,2591.7,2591.2,0.55]
[1724791653138,3.85898,2591.4,2591.2,0.55]
[1724791653444,3.85898,2591.4,2590.8,2.2892]
[1724791653445,3.85906,2591.3,2590.8,2.2892]
[1724791653652,3.85898,2591.4,2590.8,2.2892]
[1724791654161,3.85898,2591.4,2590.8,3.96724499]
[1724791654613,3.85898,2591.4,2590.9,1.67804499]
[1724791654616,3.85898,2591.4,2591.0,0.55]
[1724791656270,6.31397,2591.5,2591.0,0.55]
[1724791658497,0.28944019,2591.4,2591.0,0.55]
[1724791662697,7.71745,2591.6,2591.0,0.55]
[1724791662919,0.28969903,2591.3,2591.0,0.55]
[1724791663113,7.71745,2591.6,2591.0,0.55]
[1724791663313,0.28969903,2591.2,2591.0,0.55]
[1724791663533,7.71745,2591.6,2591.0,0.55]
[1724791663683,0.28969903,2591.1,2591.0,0.55]
[1724791664005,3.85878,2591.5,2591.0,1.3877045]
[1724791664327,3.85878,2591.5,2591.0,0.55]
[1724791664518,0.28969903,2591.4,2591.0,0.55]
[1724791666613,11.29769,2591.7,2591.1,2.3936]
[1724791666811,0.28970795,2591.6,2591.2,0.55]
[1724791668427,0.28970795,2591.6,2591.4,2.3936]
[1724791668632,7.71623,2592.0,2591.5,0.55]
[1724791668789,7.71624,2592.0,2591.5,0.55]
[1724791669286,9.8341,2592.1,2591.5,0.55]
[1724791669540,13.69198,2592.1,2591.5,1.7839515]
[1724791670537,3.0,2592.0,2591.5,1.7839515]
[1724791671048,6.85804,2592.0,2591.5,1.7839515]
[1724791671247,6.85804,2592.0,2591.5,0.55]
[1724791673129,10.71614,2592.0,2591.5,0.55]
[1724791673452,0.29031466,2591.9,2591.5,0.55]
[1724791675856,0.29031466,2591.9,2591.8,4.11644499]
[1724791676152,3.85724,2592.6,2591.9,2.3325]
[1724791676361,3.85738,2592.5,2592.0,5.41014684]
[1724791676516,3.85738,2592.5,2592.0,2.8825]